Workbook

Sheet QuickBooks Desktop Export Tips

Sheet Sheet1
A1: Type | C1: Date | E1: Num | G1: Name | I1: Memo | K1: Amount | M1: Balance
M2: 172569.88
A3: Bill Pmt -Check | C3: 2022-10-03 | E3: 14975 | G3: Araseli Avalos | I3: Inv#AA2111: October 7th & 14th Cleaning Services | K3: -250 | M3: =ROUND(M2+K3,5) -> 172319.88
A4: Bill Pmt -Check | C4: 2022-10-03 | E4: 14976 | G4: B. Dalton Bookkeeping | I4: Inv#8989 | K4: -455 | M4: =ROUND(M3+K4,5) -> 171864.88
A5: Bill Pmt -Check | C5: 2022-10-03 | E5: 14977 | G5: Charley N. Curd | I5: District Reimbursement for 5 Coffee Creamers for Office | K5: -8.9 | M5: =ROUND(M4+K5,5) -> 171855.98
A6: Bill Pmt -Check | C6: 2022-10-03 | E6: 14978 | G6: Cohn Insurance Agency | I6: Inv#MA2019: Rent October-December 2022 + New Garage | K6: -2400 | M6: =ROUND(M5+K6,5) -> 169455.98
A7: Bill Pmt -Check | C7: 2022-10-03 | E7: 14979 | G7: Culligan of the Hill Country | I7: Inv#202210524700; Acct#524700 | K7: -186.5 | M7: =ROUND(M6+K7,5) -> 169269.48
A8: Bill Pmt -Check | C8: 2022-10-03 | E8: 14980 | G8: Dave Mauk | I8: TWCA Conference Per Diem 10/5-7/2022 | K8: -192 | M8: =ROUND(M7+K8,5) -> 169077.48
A9: Bill Pmt -Check | C9: 2022-10-03 | E9: 14981 | G9: David Jeffery | I9: Inv#2209: Pump Test Report & Well Data Sep 2022 | K9: -2600 | M9: =ROUND(M8+K9,5) -> 166477.48
A10: Bill Pmt -Check | C10: 2022-10-03 | E10: 14982 | G10: Desert Engineering Group, Inc. | I10: SP060 | K10: -2028.94 | M10: =ROUND(M9+K10,5) -> 164448.54
A11: Bill Pmt -Check | C11: 2022-10-03 | E11: 14983 | G11: GM Ellis Law Firm PC | I11: Inv#BCRAGD-078: October 2022 Legislative Services | K11: -2400 | M11: =ROUND(M10+K11,5) -> 162048.54
A12: Bill Pmt -Check | C12: 2022-10-03 | E12: 14984 | G12: Luke Whitmire | I12: VOID: TWCA Conference Per Diem 10/5-7/2022 | K12: 0 | M12: =ROUND(M11+K12,5) -> 162048.54
A13: Bill Pmt -Check | C13: 2022-10-03 | E13: 14985 | G13: Nueces River Authority | I13: Education Services 10/1/2022-9/30/2023 | K13: -5000 | M13: =ROUND(M12+K13,5) -> 157048.54
A14: Bill Pmt -Check | C14: 2022-10-03 | E14: 14986 | G14: Texas A&M AgriLife Extension Service | I14: C. Fox & C. Curd 10/11-12/2022 Bennett Trust Land Stewardship Women's Conference | K14: -250 | M14: =ROUND(M13+K14,5) -> 156798.54
A15: Bill Pmt -Check | C15: 2022-10-03 | E15: 14987 | G15: United Health Care | I15: Inv#571260140954; 10/01/2022-10/31/2022 Cust#04U6711 | K15: -12233.08 | M15: =ROUND(M14+K15,5) -> 144565.46
A16: Bill Pmt -Check | C16: 2022-10-03 | E16: 14988 | G16: United States Geological Survey | I16: Bill#91002344; Period 04/01/2022-06/30/2022; Customer#6000000650 | K16: -9700 | M16: =ROUND(M15+K16,5) -> 134865.46
A17: Bill Pmt -Check | C17: 2022-10-03 | E17: 14989 | G17: Xerox Business Solutions Southwest | I17: Inv#IN4012970; 7/1/22-9/30/22 Acct#BC08 | K17: -155.19 | M17: =ROUND(M16+K17,5) -> 134710.27
A18: Bill Pmt -Check | C18: 2022-10-03 | E18: 14990 | G18: Araseli Avalos | I18: Inv#AA2112: October 21st & 28th Cleaning Services | K18: -250 | M18: =ROUND(M17+K18,5) -> 134460.27
A19: Bill Pmt -Check | C19: 2022-10-05 | E19: 14991 | G19: Advanced Hill Technologies | I19: Inv#BDS 9482 | K19: -3750 | M19: =ROUND(M18+K19,5) -> 130710.27
A20: Deposit | C20: 2022-10-11 | I20: Deposit | K20: 1505.88 | M20: =ROUND(M19+K20,5) -> 132216.15
A21: Bill Pmt -Check | C21: 2022-10-12 | E21: D | G21: AT&T Mobility | I21: Inv#X10032022; Acct#287301086391 | K21: -129.33 | M21: =ROUND(M20+K21,5) -> 132086.82
A22: Bill Pmt -Check | C22: 2022-10-12 | E22: D | G22: Bandera Electric Cooperative, Inc. | I22: 02 S36830 0018E | K22: -761.64 | M22: =ROUND(M21+K22,5) -> 131325.18
A23: Bill Pmt -Check | C23: 2022-10-12 | E23: D | G23: Bandera Electric Cooperative, Inc. | I23: 02 S36830 0018E | K23: -142.19 | M23: =ROUND(M22+K23,5) -> 131182.99
A24: Bill Pmt -Check | C24: 2022-10-12 | E24: 14992 | G24: Andrea D King | I24: TWCA Mileage & Per Diem 10/05-07/2022 | K24: -289.5 | M24: =ROUND(M23+K24,5) -> 130893.49
A25: Bill Pmt -Check | C25: 2022-10-12 | E25: 14993 | G25: Prari Blair | I25: PettyCashRefill10/12/2022 | K25: -200 | M25: =ROUND(M24+K25,5) -> 130693.49
A26: Bill Pmt -Check | C26: 2022-10-12 | E26: 14994 | G26: Quill LLC | I26: Inv#27934908: Acct#2045415 | K26: -69.99 | M26: =ROUND(M25+K26,5) -> 130623.5
A27: Bill Pmt -Check | C27: 2022-10-12 | E27: 14995 | G27: Wex Bank | I27: Inv#84229586: Acct#0496-00-486113-4 | K27: -498.58 | M27: =ROUND(M26+K27,5) -> 130124.92
A28: Liability Check | C28: 2022-10-13 | G28: QuickBooks Payroll Service | I28: Created by Payroll Service on 09/27/2022 | K28: -23896.33 | M28: =ROUND(M27+K28,5) -> 106228.59
A29: Paycheck | C29: 2022-10-14 | E29: DD | G29: Blair, Prari D | I29: Direct Deposit | K29: 0 | M29: =ROUND(M28+K29,5) -> 106228.59
A30: Paycheck | C30: 2022-10-14 | E30: DD | G30: Carter, Clinton R | I30: Direct Deposit | K30: 0 | M30: =ROUND(M29+K30,5) -> 106228.59
A31: Paycheck | C31: 2022-10-14 | E31: DD | G31: Curd, Charley | I31: Direct Deposit | K31: 0 | M31: =ROUND(M30+K31,5) -> 106228.59
A32: Paycheck | C32: 2022-10-14 | E32: DD | G32: Fox, Corrina D | I32: Direct Deposit | K32: 0 | M32: =ROUND(M31+K32,5) -> 106228.59
A33: Paycheck | C33: 2022-10-14 | E33: DD | G33: Hernandez, Hayli D | I33: Direct Deposit | K33: 0 | M33: =ROUND(M32+K33,5) -> 106228.59
A34: Paycheck | C34: 2022-10-14 | E34: DD | G34: Irvin, Diane J | I34: Direct Deposit | K34: 0 | M34: =ROUND(M33+K34,5) -> 106228.59
A35: Paycheck | C35: 2022-10-14 | E35: DD | G35: Mauk, David A | I35: Direct Deposit | K35: 0 | M35: =ROUND(M34+K35,5) -> 106228.59
A36: Paycheck | C36: 2022-10-14 | E36: DD | G36: Sckittone, Shelby L | I36: Direct Deposit | K36: 0 | M36: =ROUND(M35+K36,5) -> 106228.59
A37: Paycheck | C37: 2022-10-14 | E37: DD | G37: Sparks, Levi L. | I37: Direct Deposit | K37: 0 | M37: =ROUND(M36+K37,5) -> 106228.59
A38: Paycheck | C38: 2022-10-14 | E38: DD | G38: Thomas, Larry B | I38: Direct Deposit | K38: 0 | M38: =ROUND(M37+K38,5) -> 106228.59
A39: Paycheck | C39: 2022-10-14 | E39: DD | G39: Whitmire, Luke E | I39: Direct Deposit | K39: 0 | M39: =ROUND(M38+K39,5) -> 106228.59
A40: Liability Check | C40: 2022-10-14 | E40: EFTPS | G40: United States Treasury | I40: 74-2576034 | K40: -7845.7 | M40: =ROUND(M39+K40,5) -> 98382.89
A41: Deposit | C41: 2022-10-18 | I41: Deposit | K41: 10003.85 | M41: =ROUND(M40+K41,5) -> 108386.74
A42: Bill Pmt -Check | C42: 2022-10-19 | E42: 14996 | G42: Andrea D King | I42: GMA9 Miles 10/17/22: 54 Miles GMA-9 Meeting in Boerne | K42: -33.75 | M42: =ROUND(M41+K42,5) -> 108352.99
A43: Bill Pmt -Check | C43: 2022-10-19 | E43: 14997 | G43: Charley N. Curd | I43: Mileage Reimbursement 10/10-26/2022 -Bennett, EYH, SU Women's | K43: -250 | M43: =ROUND(M42+K43,5) -> 108102.99
A44: Bill Pmt -Check | C44: 2022-10-19 | E44: 14998 | G44: HACH | I44: 172238-001 | K44: -228.81 | M44: =ROUND(M43+K44,5) -> 107874.18
A45: Bill Pmt -Check | C45: 2022-10-19 | E45: 14999 | G45: USPS | I45: PO Box 177 12months Fee | K45: -166 | M45: =ROUND(M44+K45,5) -> 107708.18
A46: Bill Pmt -Check | C46: 2022-10-19 | E46: 15000 | G46: Water Monitoring Solutions, Inc. | I46: Inv#220686: PO#BCRA1013221 | K46: -7790 | M46: =ROUND(M45+K46,5) -> 99918.18
A47: Bill Pmt -Check | C47: 2022-10-19 | E47: 15001 | G47: Quill LLC | I47: Inv#28126570: Acct#2045415 | K47: -34.98 | M47: =ROUND(M46+K47,5) -> 99883.2
A48: Bill Pmt -Check | C48: 2022-10-19 | E48: 15002 | G48: Corrina D. Fox | I48: Mileage Reimbursement 10/15-29/2022: EYH, Women's Conf, Library, LAMCOS | K48: -226.25 | M48: =ROUND(M47+K48,5) -> 99656.95
A49: Bill Pmt -Check | C49: 2022-10-19 | E49: 15003 | G49: Card Service Center | I49: 9/8/22-10/7/22 XXXX-0067 | K49: -1829.23 | M49: =ROUND(M48+K49,5) -> 97827.72
A50: Bill Pmt -Check | C50: 2022-10-20 | E50: 15004 | G50: BPS Security | I50: Inv#1962: CustID#69330004 | K50: -645 | M50: =ROUND(M49+K50,5) -> 97182.72
A51: Bill Pmt -Check | C51: 2022-10-20 | E51: 15005 | G51: Dave Mauk | I51: Rogue Gym Equip Inventory for District Wellness Reimbursement | K51: -715 | M51: =ROUND(M50+K51,5) -> 96467.72
A52: Bill Pmt -Check | C52: 2022-10-20 | E52: 15006 | G52: IDEXX Distribution, Inc. | I52: Inv#3115946342: Acct#25059 | K52: -1323.31 | M52: =ROUND(M51+K52,5) -> 95144.41
A53: Bill Pmt -Check | C53: 2022-10-20 | E53: 15007 | G53: Prari Blair | I53: 10/24-26/22 RMO Training Austin Mileage Reimbursement & Per Diem | K53: -326.38 | M53: =ROUND(M52+K53,5) -> 94818.03
A54: Deposit | C54: 2022-10-27 | I54: Deposit | K54: 22110.15 | M54: =ROUND(M53+K54,5) -> 116928.18
A55: Liability Check | C55: 2022-10-28 | G55: QuickBooks Payroll Service | I55: Created by Payroll Service on 09/27/2022 | K55: -23896.33 | M55: =ROUND(M54+K55,5) -> 93031.85
A56: Paycheck | C56: 2022-10-31 | E56: DD | G56: Blair, Prari D | I56: Direct Deposit | K56: 0 | M56: =ROUND(M55+K56,5) -> 93031.85
A57: Paycheck | C57: 2022-10-31 | E57: DD | G57: Carter, Clinton R | I57: Direct Deposit | K57: 0 | M57: =ROUND(M56+K57,5) -> 93031.85
A58: Paycheck | C58: 2022-10-31 | E58: DD | G58: Curd, Charley | I58: Direct Deposit | K58: 0 | M58: =ROUND(M57+K58,5) -> 93031.85
A59: Paycheck | C59: 2022-10-31 | E59: DD | G59: Fox, Corrina D | I59: Direct Deposit | K59: 0 | M59: =ROUND(M58+K59,5) -> 93031.85
A60: Paycheck | C60: 2022-10-31 | E60: DD | G60: Hernandez, Hayli D | I60: Direct Deposit | K60: 0 | M60: =ROUND(M59+K60,5) -> 93031.85
A61: Paycheck | C61: 2022-10-31 | E61: DD | G61: Irvin, Diane J | I61: Direct Deposit | K61: 0 | M61: =ROUND(M60+K61,5) -> 93031.85
A62: Paycheck | C62: 2022-10-31 | E62: DD | G62: Mauk, David A | I62: Direct Deposit | K62: 0 | M62: =ROUND(M61+K62,5) -> 93031.85
A63: Paycheck | C63: 2022-10-31 | E63: DD | G63: Sckittone, Shelby L | I63: Direct Deposit | K63: 0 | M63: =ROUND(M62+K63,5) -> 93031.85
A64: Paycheck | C64: 2022-10-31 | E64: DD | G64: Sparks, Levi L. | I64: Direct Deposit | K64: 0 | M64: =ROUND(M63+K64,5) -> 93031.85
A65: Paycheck | C65: 2022-10-31 | E65: DD | G65: Thomas, Larry B | I65: Direct Deposit | K65: 0 | M65: =ROUND(M64+K65,5) -> 93031.85
A66: Paycheck | C66: 2022-10-31 | E66: DD | G66: Whitmire, Luke E | I66: Direct Deposit | K66: 0 | M66: =ROUND(M65+K66,5) -> 93031.85
A67: Liability Check | C67: 2022-10-31 | E67: EFTPS | G67: United States Treasury | I67: 74-2576034 | K67: -7845.7 | M67: =ROUND(M66+K67,5) -> 85186.15
A68: Deposit | C68: 2022-10-31 | I68: Interest | K68: 11.17 | M68: =ROUND(M67+K68,5) -> 85197.32
K69: =ROUND(SUM(K2:K68),5) -> -87372.56 | M69: =M68 -> 85197.32
